bitfinex-derivatives/quotes_SOLF0:USTF0_20241217
["timestamp","ask_amount","ask_price","bid_price","bid_amount"]
[1734441821271,10.37490427,225.7,225.62,2.2164]
[1734441822074,2.44,225.71,225.62,2.2164]
[1734441822367,10.37490427,225.7,225.6,8.8505]
[1734441822572,10.37490427,225.67,225.6,5.9441]
[1734441822972,2.2162,225.64,225.6,5.9441]
[1734441823176,2.44,225.66,225.55,2.217]
[1734441823370,2.44,225.66,225.52,5.9159]
[1734441823371,10.37490427,225.64,225.52,5.9159]
[1734441823675,10.37490427,225.61,225.52,5.9159]
[1734441823870,2.44,225.6,225.52,5.9159]
[1734441825469,2.44,225.6,225.55,2.2171]
[1734441826567,2.2163,225.63,225.55,2.2171]
[1734441827067,2.2164,225.62,225.55,2.2171]
[1734441827371,2.2164,225.62,225.52,5.9159]
[1734441827372,10.37490427,225.62,225.53,2.2172]
[1734441827567,2.44,225.64,225.53,2.2172]
[1734441827769,10.37490427,225.63,225.53,2.2172]
[1734441828573,2.2166,225.6,225.53,2.2172]
[1734441828877,12.81490427,225.6,225.51,7.50985913]
[1734441829068,15.03150427,225.6,225.51,5.29235913]
[1734441829272,4.6566,225.6,225.51,5.29235913]
[1734441829771,2.2167,225.59,225.51,7.50975913]
[1734441829974,2.2167,225.59,225.51,5.29235913]
[1734441831178,2.2167,225.59,225.52,2.2174]
[1734441832178,2.2167,225.59,225.5,5.7528]
[1734441832179,2.2168,225.58,225.5,5.7528]
[1734441832373,12.81490427,225.6,225.51,2.2174]
[1734441832574,2.2168,225.59,225.5,5.7528]
[1734441832976,2.2168,225.59,225.52,2.2174]
[1734441833176,2.44,225.6,225.52,2.2174]
[1734441833476,2.2168,225.58,225.52,2.2174]
[1734441833877,2.44,225.6,225.5,5.7528]
[1734441834185,4.6567,225.6,225.54,2.2172]
[1734441834384,2.44,225.6,225.5,5.7528]
[1734441835483,2.2167,225.59,225.53,2.2173]
[1734441837387,2.2167,225.59,225.54,2.2172]
[1734441837981,2.44,225.6,225.5,5.7528]
[1734441838181,10.37490427,225.64,225.52,10.37490427]
[1734441838375,10.37490427,225.64,225.52,12.81490427]
[1734441838983,10.37490427,225.64,225.52,2.44]
[1734441839883,2.2166,225.6,225.54,2.2171]
[1734441840184,10.37490427,225.61,225.54,2.2171]
[1734441840583,2.44,225.6,225.51,2.9705]
[1734441840783,10.37490427,225.58,225.5,5.7528]
[1734441841083,2.217,225.56,225.51,2.2175]
[1734441841288,10.37490427,225.58,225.46,10.37490427]
[1734441841781,2.44,225.6,225.54,2.2171]
[1734441842177,2.44,225.6,225.53,2.2173]
[1734441842682,2.44,225.6,225.48,5.25650611]
[1734441842683,2.2169,225.58,225.48,5.25650611]
[1734441842881,2.2169,225.58,225.51,2.2175]
[1734441843088,2.2169,225.58,225.48,5.25650611]
[1734441843289,2.2167,225.59,225.48,5.25650611]
[1734441843485,2.44,225.6,225.48,5.25650611]
[1734441843687,10.37490427,225.58,225.48,5.25650611]
[1734441844394,2.2172,225.55,225.48,5.25650611]
[1734441844591,10.37490427,225.58,225.48,5.25650611]
[1734441845291,10.37490427,225.58,225.52,2.2174]
[1734441845890,2.2169,225.57,225.53,2.2173]
[1734441846395,10.37490427,225.58,225.48,5.25650611]
[1734441846592,2.217,225.56,225.52,2.2174]
[1734441847096,10.37490427,225.58,225.48,5.25650611]
[1734441847795,12.59170427,225.58,225.52,2.2173]
[1734441847989,12.59170427,225.58,225.48,5.25650611]
[1734441848295,10.37490427,225.58,225.48,5.25650611]
[1734441848495,2.2169,225.57,225.52,2.2173]
[1734441849195,12.81490427,225.6,225.52,2.2173]
[1734441849392,5.24586002,225.67,225.49,10.37490427]
[1734441849597,10.37490427,225.64,225.5,2.44]
[1734441849795,12.81490427,225.64,225.52,10.37490427]
[1734441849997,2.2163,225.63,225.58,2.2168]
[1734441850193,2.2163,225.63,225.52,10.37490427]
[1734441850496,2.2164,225.63,225.58,2.2167]
[1734441850700,2.44,225.64,225.52,10.37490427]
[1734441852107,2.2165,225.61,225.56,2.2169]
[1734441852996,10.37490427,225.63,225.51,5.877]
[1734441853302,10.37490427,225.6,225.51,5.877]
[1734441853997,10.37490427,225.6,225.51,8.0945]
[1734441854397,2.2169,225.57,225.52,2.2173]
[1734441855394,10.37490427,225.6,225.52,2.2173]
[1734441855995,2.217,225.57,225.52,2.2173]
[1734441856697,2.217,225.56,225.51,8.0945]
[1734441856998,2.44,225.59,225.51,5.877]
[1734441857599,2.2172,225.54,225.51,5.877]
[1734441857892,2.44,225.59,225.51,5.877]
[1734441858098,6.64872802,225.54,225.51,5.877]
[1734441858302,8.86592802,225.54,225.51,5.877]
[1734441858696,2.2172,225.54,225.51,5.877]
[1734441860096,2.217,225.56,225.51,8.0944]
[1734441860299,6.64872802,225.56,225.51,5.877]
[1734441861404,8.86572802,225.56,225.52,2.2173]
[1734441861599,6.64872802,225.56,225.52,2.2173]
[1734441861800,6.64872802,225.57,225.51,5.877]
[1734441862103,8.86572802,225.57,225.53,2.2172]
[1734441862296,6.64872802,225.57,225.51,12.52572802]
[1734441862497,6.64872802,225.58,225.51,12.52572802]
[1734441862703,6.64872802,225.58,225.51,2.878]
[1734441863099,2.44,225.61,225.51,2.878]
[1734441863296,8.86562802,225.58,225.53,2.2173]
[1734441864797,2.2169,225.57,225.53,2.2173]
[1734441865806,4.6564,225.63,225.55,2.2171]
[1734441865998,6.64872802,225.6,225.55,2.2171]
[1734441866404,2.2167,225.59,225.55,2.2171]
[1734441868205,6.64872802,225.6,225.56,2.217]
[1734441868405,2.44,225.63,225.55,6.64872802]
[1734441868614,6.64872802,225.62,225.55,6.64872802]
[1734441868807,6.64872802,225.62,225.58,2.2168]
[1734441869508,6.64872802,225.62,225.55,6.64872802]
[1734441869708,6.64872802,225.62,225.56,4.49265527]
[1734441869908,6.64872802,225.62,225.55,25.16650637]
[1734441870109,8.86492802,225.64,225.57,6.64872802]
[1734441870305,8.86492802,225.64,225.6,2.2165]
[1734441871006,6.64872802,225.64,225.61,2.2165]
[1734441871406,8.86492802,225.64,225.6,2.2166]
[1734441871607,6.64872802,225.62,225.55,18.51777835]
[1734441871804,6.64872802,225.56,225.47,3.32726665]
[1734441872009,6.64872802,225.49,225.47,3.32726665]
[1734441872210,2.44,225.55,225.47,3.32726665]
[1734441872406,2.44,225.55,225.44,2.2181]
[1734441872407,6.64872802,225.51,225.44,2.2181]
[1734441873006,4.56755701,225.5,225.44,2.2181]
[1734441873314,4.56755701,225.49,225.44,2.2181]
[1734441873516,4.56755701,225.48,225.45,4.48872085]
[1734441873712,4.56755701,225.47,225.44,20.73587835]
[1734441873909,4.56755701,225.46,225.45,4.48871916]
[1734441874827,4.56755701,225.46,225.44,6.16537143]
[1734441875018,2.2177,225.5,225.45,4.48800989]
[1734441875214,2.2177,225.5,225.44,6.16537143]
[1734441875920,10.3922143,225.54,225.44,6.16537143]
[1734441876121,10.3922143,225.51,225.42,6.16537143]
[1734441876329,10.3922143,225.51,225.41,2.9107]
[1734441876519,10.3922143,225.51,225.41,9.07607143]
[1734441876716,2.44,225.55,225.42,6.70365029]
[1734441876717,10.3922143,225.54,225.42,6.70365029]
[1734441876927,10.3922143,225.54,225.42,2.2184]
[1734441877128,2.2177,225.5,225.42,8.38377143]
[1734441877326,2.2177,225.5,225.42,2.2184]
[1734441877527,10.3922143,225.54,225.43,2.2182]
[1734441877927,10.3922143,225.54,225.44,2.44]
[1734441878128,10.3922143,225.54,225.44,4.6582]
[1734441878827,10.3922143,225.54,225.45,2.218]
[1734441879626,2.2176,225.51,225.45,2.218]
[1734441879825,2.2176,225.51,225.46,2.2179]
[1734441882928,2.2176,225.51,225.44,2.44]
[1734441883130,2.2176,225.51,225.45,2.2181]
[1734441885127,2.2176,225.51,225.44,2.44]
[1734441885128,2.2176,225.51,225.46,2.218]
[1734441885329,2.2176,225.5,225.46,2.218]
[1734441886126,7.85215782,225.57,225.47,2.2179]
[1734441886324,10.3922143,225.56,225.47,2.2179]
[1734441887729,10.3922143,225.56,225.44,18.99758573]
[1734441887926,10.3922143,225.56,225.45,4.48262607]
[1734441888133,2.2172,225.54,225.46,4.48262607]
[1734441888336,10.3922143,225.59,225.51,2.2175]
[1734441888831,2.2171,225.56,225.51,2.2175]
[1734441889428,2.2169,225.57,225.52,2.2173]
[1734441889626,2.2169,225.57,225.5,2.8636]
[1734441890234,10.3922143,225.53,225.36,0.15739]
[1734441890431,10.3922143,225.5,225.36,0.15739]
[1734441890629,10.3922143,225.5,225.37,4.48126961]
[1734441890836,2.2182,225.44,225.38,2.2188]
[1734441894733,2.2183,225.43,225.37,7.5568104]
[1734441894939,10.3922143,225.46,225.36,5.72059]
[1734441895139,10.3922143,225.43,225.36,0.15739]
[1734441895342,2.2189,225.37,225.36,0.15739]
[1734441896340,10.3922143,225.4,225.36,0.15739]
[1734441897043,2.44,225.42,225.36,0.15739]
[1734441897341,2.2187,225.39,225.36,0.15739]
[1734441897740,12.8322143,225.43,225.36,0.15739]
[1734441897938,2.2186,225.41,225.36,0.15739]
[1734441899045,10.3922143,225.43,225.36,0.15739]
[1734441899442,2.2185,225.42,225.36,0.15739]
[1734441900342,10.3922143,225.43,225.36,0.15739]
[1734441900343,2.2185,225.41,225.36,0.15739]
[1734441900643,10.3922143,225.43,225.36,0.15739]
[1734441900946,2.2186,225.4,225.36,0.15739]
[1734441902644,10.3922143,225.43,225.36,0.15739]
[1734441902843,2.44,225.44,225.36,0.15739]
[1734441903247,2.2184,225.42,225.37,2.2188]
[1734441903747,2.2184,225.42,225.36,0.15739]
[1734441904046,2.44,225.5,225.36,10.5496043]
[1734441904243,10.3922143,225.49,225.37,8.3887]
[1734441904744,2.2182,225.44,225.37,8.3887]
[1734441905344,2.2183,225.43,225.38,2.2187]
[1734441905542,10.3922143,225.46,225.37,8.3887]
[1734441906248,2.2182,225.45,225.39,2.2186]
[1734441906948,2.2182,225.45,225.4,2.2185]
[1734441907642,2.2182,225.44,225.38,2.2187]
[1734441908044,6.65539224,225.43,225.38,2.2187]
[1734441908247,6.65539224,225.43,225.39,2.2186]
[1734441909744,2.2182,225.44,225.39,2.2186]
[1734441909947,8.87359224,225.44,225.39,2.2186]
[1734441910645,8.87359224,225.44,225.34,18.51777835]
[1734441910646,2.2186,225.4,225.34,20.73687835]
[1734441910846,6.65539224,225.38,225.3,8.8889]
[1734441911051,6.65539224,225.38,225.31,4.44807195]
[1734441912054,10.40387418,225.41,225.31,4.44807195]
[1734441912553,2.2188,225.38,225.33,2.2192]
[1734441916057,10.40387418,225.41,225.33,2.2192]
[1734441916251,2.44,225.42,225.27,0.18726]
[1734441916453,10.40387418,225.35,225.27,0.18726]
[1734441916651,2.2194,225.32,225.27,2.40706]
[1734441916853,10.40387418,225.32,225.27,0.18726]
[1734441917351,2.2196,225.3,225.27,0.18726]
[1734441917753,2.2194,225.32,225.27,0.18726]
[1734441917958,2.44,225.32,225.27,0.18726]
[1734441918454,2.2196,225.3,225.27,0.18726]
[1734441918959,2.44,225.32,225.27,0.18726]
[1734441919253,10.40387418,225.31,225.27,0.18726]
[1734441919854,12.84387418,225.31,225.27,0.18726]
[1734441920256,10.40387418,225.31,225.27,0.18726]
[1734441920449,2.44,225.33,225.27,0.18726]
[1734441920657,2.2197,225.28,225.27,0.18726]
[1734441920957,10.40387418,225.31,225.27,0.18726]
[1734441921360,2.2197,225.28,225.27,0.18726]
[1734441922753,2.22,225.26,225.21,2.2203]
[1734441922958,10.40387418,225.31,225.22,2.2203]
[1734441923256,10.40387418,225.31,225.17,2.44]
[1734441923454,10.40387418,225.31,225.14,36.27970343]
[1734441923656,2.2199,225.27,225.17,10.40387418]
[1734441924154,2.2199,225.27,225.18,5.35850941]
[1734441924955,2.2199,225.27,225.21,2.2203]
[1734441925654,2.22,225.26,225.2,2.2205]
[1734441925854,10.40387418,225.31,225.15,11.2664]
[1734441926058,10.40387418,225.28,225.15,11.2664]
[1734441926251,2.44,225.27,225.15,8.8264]
[1734441926452,10.40387418,225.25,225.15,5.7677]
[1734441926858,10.40387418,225.25,225.15,2.8955]
[1734441927057,10.40387418,225.25,225.14,2.2211]
[1734441927260,10.40387418,225.25,225.13,7.75390316]
[1734441928455,2.2205,225.21,225.16,2.2208]
[1734441929054,2.2202,225.24,225.19,2.2206]
[1734441929454,10.40387418,225.28,225.19,2.2206]
[1734441929659,2.44,225.29,225.17,10.40387418]
[1734441929959,2.44,225.29,225.18,2.44]
[1734441930262,10.40387418,225.31,225.18,5.3558]
[1734441930457,10.40387418,225.31,225.19,2.8368]
[1734441930664,2.44,225.33,225.2,10.40387418]
[1734441930864,2.2195,225.31,225.2,10.40387418]
[1734441931062,10.40387418,225.34,225.2,13.39987418]
[1734441931359,2.2192,225.34,225.28,2.2197]
[1734441931562,12.84387418,225.36,225.28,2.2197]
[1734441932259,10.40387418,225.36,225.28,2.2197]
[1734441932566,10.40387418,225.36,225.24,2.44]
[1734441932956,2.2193,225.33,225.28,2.2197]
[1734441934062,12.84387418,225.37,225.29,2.2196]
[1734441934466,2.44,225.37,225.24,2.44]
[1734441934661,2.2193,225.33,225.28,2.2197]
[1734441935061,10.40387418,225.36,225.24,2.44]
[1734441935361,2.44,225.37,225.24,2.44]
[1734441935557,10.40387418,225.36,225.24,2.44]
[1734441935757,2.2193,225.33,225.24,2.44]
[1734441937668,2.2193,225.33,225.28,2.2197]
[1734441938068,6.66621929,225.29,225.17,17.74702432]
[1734441938366,6.66621929,225.18,225.08,12.04384877]
[1734441938572,6.66621929,225.16,225.08,12.04384877]
[1734441939165,6.66621929,225.16,225.05,8.8438]
[1734441939371,2.44,225.2,225.07,6.66621929]
[1734441939568,6.66621929,225.15,225.07,6.66621929]
[1734441940366,2.44,225.21,225.13,6.66621929]
[1734441940563,6.66621929,225.2,225.13,6.66621929]
[1734441941274,6.66621929,225.2,225.11,9.10621929]
[1734441941570,8.88681929,225.2,225.13,2.2212]
[1734441941971,2.2206,225.2,225.13,2.2212]
[1734441942376,2.2206,225.19,225.11,2.44]
[1734441943579,2.2206,225.19,225.12,2.2213]
[1734441943781,12.86141904,225.23,225.11,2.44]
[1734441944273,2.2206,225.2,225.11,2.44]
[1734441944777,2.2207,225.19,225.12,2.2213]
[1734441944976,10.42141904,225.2,225.05,8.8438]
[1734441945174,10.42141904,225.2,225.05,8.2598]
[1734441945375,2.2213,225.12,225.05,8.2598]
[1734441945580,2.2213,225.12,225.05,5.8198]
[1734441945779,2.2213,225.12,225.05,8.2598]
[1734441945980,2.2213,225.12,225.05,5.8198]
[1734441946283,12.86141904,225.17,225.05,5.8198]
[1734441947480,2.2216,225.09,225.05,5.8198]
[1734441949877,2.2213,225.12,225.05,8.0418]
[1734441950591,2.2213,225.12,225.06,2.2219]
[1734441951085,2.2214,225.11,225.05,5.8198]
[1734441951283,10.42141904,225.06,225.0,17.76324442]
[1734441951483,10.42141904,225.17,225.0,17.76324442]
[1734441951484,10.42141904,225.03,225.0,17.76324442]
[1734441951783,10.42141904,225.06,225.0,17.76324442]
[1734441952787,5.36219567,225.25,225.05,10.42141904]
[1734441952989,5.36219567,225.25,225.12,10.42141904]
[1734441953185,10.42141904,225.23,225.07,2.44]
[1734441953392,10.42141904,225.2,225.08,2.2217]
[1734441953782,2.2211,225.15,225.09,2.2216]
[1734441953990,10.42141904,225.2,225.07,2.44]
[1734441954386,10.42141904,225.2,225.05,10.42141904]
[1734441954693,2.221,225.15,225.1,2.2215]
[1734441955293,2.221,225.15,225.09,2.2216]
[1734441955489,10.42141904,225.2,225.07,2.44]
[1734441955689,2.2209,225.16,225.07,2.44]
[1734441955890,2.2209,225.16,225.08,10.42141904]
[1734441956391,2.2209,225.16,225.1,2.2215]
[1734441957283,2.221,225.15,225.1,2.2215]
[1734441957484,2.221,225.15,225.09,2.2216]
[1734441958493,2.2209,225.17,225.11,2.2214]
[1734441959295,2.2211,225.15,225.09,2.2216]
[1734441959496,10.42141904,225.2,225.07,2.44]
[1734441959896,10.42141904,225.17,225.03,2.44]
[1734441960093,2.44,225.16,225.03,2.44]
[1734441960495,2.2213,225.13,225.04,2.2221]
[1734441960794,2.44,225.16,225.05,10.42141904]
[1734441960993,6.0464,225.24,225.08,10.42141904]
[1734441960994,2.44,225.22,225.08,10.42141904]
[1734441961195,2.44,225.22,225.09,2.44]
[1734441961590,2.2207,225.19,225.12,2.2213]
[1734441961795,12.86141904,225.23,225.12,2.2213]
[1734441962301,2.44,225.23,225.12,2.2213]
[1734441962696,3.0043,225.24,225.11,10.42141904]
[1734441962896,8.8723,225.46,225.18,10.42141904]
[1734441963098,2.2198,225.28,225.18,10.42141904]
[1734441963396,10.42141904,225.3,225.17,2.44]
[1734441963797,10.42141904,225.27,225.13,2.2212]
[1734441963991,2.44,225.26,225.12,8.8302]
[1734441964191,10.42141904,225.27,225.12,11.0515]
[1734441964192,2.2208,225.18,225.12,11.0515]
[1734441964498,2.44,225.32,225.17,10.42141904]
[1734441964692,2.44,225.32,225.2,10.42141904]
[1734441964891,2.44,225.32,225.22,2.2203]
[1734441965093,5.41843432,225.33,225.22,2.2203]
[1734441965299,2.44,225.32,225.22,2.2203]
[1734441965495,2.2198,225.27,225.23,2.2202]
[1734441965696,2.44,225.32,225.23,2.2202]
[1734441966203,5.41843432,225.33,225.23,2.2202]
[1734441966403,2.44,225.32,225.2,10.42141904]
[1734441966903,2.22,225.26,225.21,2.2203]
[1734441967101,10.42141904,225.31,225.18,2.44]
[1734441967493,10.42141904,225.31,225.19,2.2206]
[1734441968207,2.2201,225.25,225.18,2.44]
[1734441968702,10.42141904,225.31,225.18,12.86141904]
[1734441969102,2.44,225.32,225.18,12.86141904]
[1734441970103,2.2199,225.27,225.22,2.2202]
[1734441970498,2.44,225.32,225.21,10.42141904]
[1734441970699,2.2197,225.29,225.24,2.2201]
[1734441971102,7.81023831,225.34,225.24,2.2201]
[1734441972402,2.2197,225.29,225.24,2.2201]
[1734441972902,7.81023831,225.34,225.24,2.2201]
[1734441973206,2.2198,225.28,225.24,2.2201]
[1734441973408,5.37023831,225.34,225.21,12.86141904]
[1734441973606,2.44,225.34,225.25,2.22]
[1734441973803,2.44,225.34,225.22,9.1852]
[1734441974205,2.2198,225.28,225.23,2.2202]
[1734441975505,10.42141904,225.33,225.17,10.42141904]
[1734441975707,2.44,225.34,225.17,13.48591904]
[1734441975708,10.42141904,225.3,225.17,13.48591904]
[1734441975911,2.44,225.29,225.15,8.6754]
[1734441976216,2.2206,225.2,225.15,10.8963]
[1734441976707,2.2206,225.2,225.15,8.6754]
[1734441976907,2.2206,225.2,225.15,14.09313889]
[1734441977512,2.2206,225.2,225.16,2.2209]
[1734441978921,2.44,225.29,225.15,14.09313889]
[1734441979113,12.86141904,225.29,225.15,14.09313889]
[1734441979511,2.2205,225.2,225.15,16.31403889]
[1734441979715,2.2205,225.2,225.15,7.63863889]
[1734441980415,2.2208,225.18,225.14,10.42141904]
[1734441980717,10.42141904,225.23,225.11,12.86141904]
[1734441980916,3.057,225.25,225.11,12.86141904]
[1734441981119,3.057,225.25,225.15,10.42141904]
[1734441981420,3.057,225.25,225.12,10.42141904]
[1734441981616,2.2207,225.18,225.13,2.2212]
[1734441981916,2.44,225.21,225.06,10.42141904]
[1734441982114,10.42141904,225.19,225.06,10.42141904]
[1734441982311,10.42141904,225.19,225.07,2.2218]
[1734441982515,10.42141904,225.16,225.05,2.44]
[1734441982713,2.2219,225.07,225.05,2.44]
[1734441982915,2.44,225.15,225.04,8.9362]
[1734441983920,2.2218,225.08,225.04,8.9362]
[1734441985217,2.2216,225.1,225.04,11.1583]
[1734441985420,2.44,225.15,225.04,8.9362]
[1734441985618,2.44,225.15,225.04,19.35761904]
[1734441986021,2.44,225.17,225.04,19.35761904]
[1734441986321,24.46143081,225.14,225.04,19.35761904]
[1734441986519,2.2213,225.13,225.08,2.2216]
[1734441986718,7.51611874,225.12,225.08,2.2216]
[1734441986914,7.51611874,225.12,225.04,19.35761904]
[1734441986915,7.51611874,225.11,225.04,19.35761904]
[1734441987121,7.51611874,225.1,225.04,19.35761904]
[1734441987321,16.94531207,225.11,225.07,10.42141904]
[1734441987517,2.2208,225.18,225.13,2.2212]
[1734441987825,2.2208,225.18,225.13,10.42141904]
[1734441988518,2.2208,225.18,225.13,12.64261904]
[1734441989228,2.2207,225.19,225.14,2.2211]
[1734441989725,2.2205,225.2,225.13,10.42141904]
[1734441989928,0.9117,225.24,225.13,10.42141904]
[1734441990126,5.497,225.25,225.13,10.42141904]
[1734441990324,2.2203,225.22,225.17,2.2208]
[1734441990524,5.8117,225.32,225.19,10.42141904]
[1734441990725,8.8668,225.32,225.19,10.42141904]
[1734441991024,2.2198,225.28,225.19,10.42141904]
[1734441991326,8.8668,225.32,225.19,10.42141904]
[1734441991729,5.8117,225.32,225.19,10.42141904]
[1734441992029,2.2201,225.24,225.19,12.64201904]
[1734441992227,5.8117,225.32,225.19,10.42141904]
[1734441992733,2.2201,225.25,225.2,2.2205]
[1734441993432,5.8117,225.32,225.19,10.42141904]
[1734441994028,2.2197,225.29,225.21,2.2204]
[1734441994228,5.8117,225.32,225.21,2.2204]
[1734441994943,5.8117,225.32,225.19,10.42141904]
[1734441995137,2.2203,225.23,225.19,10.42141904]
[1734441995337,2.44,225.29,225.19,2.44]
[1734441996033,2.44,225.29,225.19,12.86141904]
[1734441996236,5.8117,225.32,225.19,12.86141904]
[1734441996635,10.42141904,225.36,225.22,10.42141904]
[1734441996839,12.86141904,225.36,225.22,10.42141904]
[1734441997239,12.86141904,225.36,225.24,2.2201]
[1734441997443,12.86141904,225.36,225.24,4.6601]
[1734441997642,12.86141904,225.36,225.24,2.44]
[1734441997846,2.2197,225.29,225.25,2.22]
[1734441998244,12.86141904,225.36,225.25,2.22]
[1734441998751,2.2196,225.3,225.26,2.2199]
[1734441998953,2.2196,225.3,225.24,2.44]
[1734441999148,2.2197,225.29,225.24,2.44]
[1734442000552,2.2197,225.29,225.25,2.22]
[1734442001246,2.2196,225.3,225.26,2.2199]
[1734442001452,2.44,225.36,225.25,10.42141904]
[1734442001647,13.37561904,225.39,225.25,10.42141904]
[1734442002057,29.69288053,225.38,225.25,10.42141904]
[1734442002549,2.2194,225.32,225.25,10.42141904]
[1734442003545,2.2194,225.32,225.24,2.44]
[1734442003753,2.2193,225.33,225.27,2.2198]
[1734442004156,2.2193,225.33,225.26,3.0028]
[1734442004354,2.2193,225.33,225.26,5.9411]
[1734442004552,29.69288053,225.38,225.26,5.9411]
[1734442004751,2.2192,225.34,225.26,5.9411]
[1734442005353,2.2193,225.33,225.29,2.2196]
[1734442005651,13.37561904,225.39,225.28,10.42141904]
[1734442005852,13.37561904,225.39,225.26,5.9411]
[1734442006051,13.37561904,225.39,225.26,3.0028]
[1734442006259,2.8875,225.38,225.25,10.42141904]
[1734442006857,2.2199,225.26,225.25,10.42141904]
[1734442008461,2.22,225.25,225.24,2.44]
[1734442008656,2.22,225.25,225.22,10.42141904]
[1734442008853,2.44,225.35,225.22,10.42141904]
[1734442009053,2.2202,225.23,225.22,10.42141904]
[1734442009557,2.2202,225.23,225.2,5.4653]
[1734442009558,2.44,225.3,225.17,2.44]
[1734442009762,2.2206,225.2,225.17,2.44]
[1734442013763,2.44,225.29,225.17,2.44]
[1734442013961,2.44,225.29,225.19,10.42141904]
[1734442014265,2.2203,225.23,225.19,10.42141904]
[1734442014462,2.2203,225.23,225.19,12.64201904]
[1734442014655,2.44,225.3,225.19,10.42141904]
[1734442015057,2.2204,225.22,225.19,10.42141904]
[1734442015257,12.86141904,225.3,225.17,2.44]
[1734442015573,12.86141904,225.3,225.17,12.86141904]
[1734442015864,12.86141904,225.3,225.17,15.08221904]
[1734442016270,2.2199,225.27,225.17,15.08221904]
[1734442016561,12.86141904,225.3,225.17,15.08221904]
[1734442016866,2.2205,225.21,225.17,15.08221904]
[1734442017863,2.44,225.29,225.17,12.86141904]
[1734442018063,2.2206,225.2,225.17,12.86141904]
[1734442020170,2.44,225.29,225.17,12.86141904]
[1734442020366,2.2206,225.19,225.17,12.86141904]
[1734442020565,10.42141904,225.28,225.13,11.55517312]
[1734442020762,2.2211,225.14,225.13,3.115]
[1734442021067,10.42141904,225.22,225.1,2.44]
[1734442021270,2.9379,225.21,225.1,2.44]
[1734442023467,2.9379,225.21,225.1,12.86141904]
[1734442023668,2.44,225.23,225.1,12.86141904]
[1734442023968,10.42141904,225.22,225.1,2.44]
[1734442024165,10.42141904,225.19,225.06,2.9216]
[1734442024370,2.44,225.18,225.06,2.9216]
[1734442024871,2.2216,225.09,225.06,2.9216]
[1734442025370,5.6111,225.18,225.08,2.2217]
[1734442025371,2.2214,225.12,225.08,2.2217]
[1734442025766,10.42141904,225.22,225.13,2.2212]
[1734442025767,2.44,225.22,225.13,2.2212]
[1734442026467,2.2208,225.18,225.13,2.2212]
[1734442026864,2.44,225.22,225.13,2.2212]
[1734442027066,2.44,225.22,225.12,2.44]
[1734442027865,2.44,225.22,225.08,10.42141904]
[1734442028075,10.42141904,225.21,225.08,10.42141904]
[1734442028265,10.42141904,225.21,225.06,2.9216]
[1734442028464,10.42141904,225.21,225.06,2.44]
[1734442028465,3.1542,225.2,225.06,2.44]
[1734442028664,10.42141904,225.18,225.06,2.44]
[1734442028865,2.44,225.17,225.06,2.44]
[1734442029069,2.2217,225.09,225.06,2.44]
[1734442029672,2.2217,225.09,225.05,10.42141904]
[1734442030073,2.2217,225.08,225.05,10.42141904]
[1734442031873,2.2217,225.08,225.03,4.6622]
[1734442032369,8.5198,225.17,225.03,2.2222]
[1734442033365,8.5198,225.17,225.02,10.42141904]
[1734442033366,2.2218,225.07,225.02,12.86141904]
[1734442033576,2.2218,225.07,225.02,15.08371904]
[1734442034768,2.2218,225.07,225.02,12.86141904]
[1734442034967,2.2218,225.07,225.03,2.2222]
[1734442036680,8.5198,225.17,225.02,10.42141904]
[1734442037375,2.2215,225.1,225.02,10.42141904]
[1734442037774,8.5198,225.17,225.02,10.42141904]
[1734442037974,2.2213,225.13,225.05,2.222]
[1734442038171,8.5198,225.17,225.05,2.222]
[1734442038373,10.42141904,225.15,225.02,10.42141904]
[1734442038770,2.2218,225.07,225.03,2.2222]
[1734442039275,10.42141904,225.15,225.01,13.96837261]
[1734442039471,2.2219,225.06,225.02,2.2223]